Cogmind - Beta 13 @@@ ROGUE MODE // 2024.04.01 @ 14:19:41 Player: weedlord420 Result: Destroyed by 40-D0X(R) with Subdweller Machine Gun Performance ------------- Evolutions (0) 0 Regions Visited (2) 400 Robots Destroyed (45) 225 Value Destroyed (980) 980 Prototype IDs (4) 80 Alien Tech Used (0) 0 Bonus (0) 0 TOTAL SCORE: 1685 Bonus ------- None Cogmind --------- Core Integrity 0/250 Matter 110/300 Energy 200/200 System Corruption 0% Temperature Cool (0) Movement Core (500) Ox9 Location -10/Subcaves Parts ------- > --- POWER (1) -------- Subdweller Power Source > --- PROPULSION (2) --- (None) > --- UTILITY (2) ------ Medium Storage Unit Hardened Light Armor Plating > --- WEAPON (2) ------- Subdweller Machine Gun Subdweller Machine Gun > --- INVENTORY (10) --- Improved Heat Sink Improved Terrain Scanner Propulsion Shielding Hardened Light Armor Plating Hardened Light Armor Plating Scrap Shield Subdweller Shrapnel Launcher Subdweller Shrapnel Launcher Scrap Shield Fragment (46) Peak State ------------ > --- POWER ------------ Makeshift Power Source > --- PROPULSION ------- Light Treads Spiked Treads > --- UTILITY ---------- Medium Storage Unit Hardened Light Armor Plating > --- WEAPON ----------- Spread Laser Spread Laser > --- INVENTORY -------- Improved Heat Sink Improved Terrain Scanner Propulsion Shielding Hardened Light Armor Plating Hardened Light Armor Plating Hardened Light Armor Plating Scrap Shield Subdweller Shrapnel Launcher Scrap Shield Fragment [Rating: 16] Favorites ----------- Power Light Nuclear Core Engine Subdweller Power Source Power Core Light Nuclear Core Propulsion Light Treads Treads Light Treads Leg Aluminum Leg Utility Hardened Light Armor Plating Device Improved Terrain Scanner Storage Medium Storage Unit Processor Signal Interpreter Protection Hardened Light Armor Plating Weapon Spread Laser Energy Gun Spread Laser Ballistic Gun Subdweller Machine Gun Launcher Subdweller Shrapnel Launcher Build | -11 -10 -10 ------- Run | Yrd Mat Sub Slots Evolved . | . . . Power . | . . . Propulsion . | . . . Utility . | . . . Weapon . | . . . Parts Attached 47 | 7 13 27 Power 7 | 1 1 5 Engine 6 | 1 . 5 Core 1 | . 1 . Reactor . | . . . Propulsion 10 | 2 3 5 Treads 8 | . 3 5 Leg 2 | 2 . . Wheel . | . . . Hover . | . . . Flight . | . . . Utility 7 | 2 3 2 Device 1 | 1 . . Storage 2 | 1 1 . Processor 1 | . 1 . Hackware . | . . . Protection 3 | . 1 2 Artifact . | . . . Weapon 23 | 2 6 15 Energy Gun 4 | 2 2 . Energy Cannon . | . . . Ballistic Gun 11 | . 2 9 Ballistic Cannon . | . . . Launcher 8 | . 2 6 Special Weapon . | . . . Impact Weapon . | . . . Slashing Weapon . | . . . Piercing Weapon . | . . . Special Melee Weapon . | . . . Unidentified Prototypes . | . . . Parts Lost 5 | . . 5 Power 3 | . . 3 Propulsion 1 | . . 1 Utility . | . . . Weapon 1 | . . 1 Highest Loss Streak 2 | . . 2 To Critical Strikes . | . . . Average Slot Usage (%) 96 | . 99 94 Engine 6 | . 1 9 Core 6 | . 12 2 Treads 24 | . 23 25 Leg 1 | . 3 . Storage 14 | . 14 14 Processor 2 | . 6 . Protection 10 | . 4 14 Energy Gun 14 | . 23 8 Ballistic Gun 9 | . 3 13 Launcher 3 | . . 6 Naked Turns . | . . . Heaviest Build 36 | 12 21 36 Greatest Support 40 | 20 40 40 Greatest Overweight (x) 4 | . 4 1 Average Overweight (x) . | . . . Largest Inventory Capacity 10 | 8 10 10 Average Capacity 9 | 7 8 10 Most Carried 10 | 5 9 10 Average Carried 8 | 1 7 9 Final Capacity 10 | 8 10 10 Final Carried 10 | 2 9 10 Class Distribution -------------------- 77% | Mutant 18% | Scavenger-Mutant 3% | Derelict-Mutant Dominant Class ---------------- Mutant | -10/Materials Mutant | -10/Subcaves Resources | -11 -10 -10 ----------- Run | Yrd Mat Sub Matter Collected 1163 | 119 464 580 Remotely . | . . . Salvage Created 1137 | 92 643 402 Parts 88 | 5 43 40 Haulers Intercepted 2 | . 2 . Recyclers Shooed 2 | . 2 . Parts Field Recycled . | . . . Retrieved Matter . | . . . Parts Self-Destructed 9 | . . 9 Prevented . | . . . Kills | -11 -10 -10 ------- Run | Yrd Mat Sub Combat Hostiles Destroyed 30 | . 12 18 Guns 25 | . 8 17 AOE 5 | . 4 1 Classes Destroyed 10 | 2 6 2 Worker 2 | . 2 . Builder 1 | . 1 . Tunneler 2 | 1 1 . Hauler 2 | . 2 . Recycler 5 | 1 4 . Watcher 3 | . 3 . Swarmer 10 | . 6 4 Grunt 6 | . 6 . Artisan 2 | . . 2 Subdweller 14 | . . 14 Best Kill Streak 9 | 2 9 4 Combat Bots Only 6 | . 6 4 Max Kills in Single Turn 2 | 1 2 1 Gunslinging . | . . . Exploded 2 | . 2 1 Melee . | . . . Uniques/NPCs Destroyed . | . . . Combat | -11 -10 -10 -------- Run | Yrd Mat Sub Hostile Shots Fired 127 | . 28 99 Missed 41 | . 8 33 Damage Taken 1499 | . 210 1289 Core 263 | . 41 222 Absorbed by Shields . | . . . Core Remaining (%) 100 | 100 . . Volleys Fired 130 | 4 50 76 Largest 2 | 2 2 2 Hottest 130 | 90 130 130 Shots Fired 226 | 8 100 118 Gun 201 | 8 95 98 Cannon . | . . . Launcher 25 | . 5 20 Special . | . . . Kinetic 121 | . 46 75 Thermal 100 | 8 49 43 Explosive 5 | . 5 . Electromagnetic . | . . . Robot Hit Streak 19 | 3 18 19 Robot Miss Streak 8 | 1 8 3 Penetration Max . | . . . Secondary Targets 1 | . 1 . Max Gunslinging Chain 1 | . 1 . Shots Hit Robots 141 | 5 63 73 Core Hits 130 | 3 61 66 Critical Kills 1 | . 1 . Critical Parts Destroyed . | . . . Critical Strikes 1 | . 1 . Destroy 1 | . 1 . Melee Attacks . | . . . Impact . | . . . Slashing . | . . . Piercing . | . . . Sneak Attacks . | . . . Combat Hostiles . | . . . Follow-up Attacks . | . . . Damage Inflicted 3185 | 61 1179 1945 Guns 2185 | 61 795 1329 Cannons . | . . . Explosions 992 | . 376 616 Melee . | . . . Ramming 8 | . 8 . Kinetic 1691 | . 351 1340 Thermal 1110 | 61 444 605 Explosive 376 | . 376 . Electromagnetic . | . . . Impact . | . . . Slashing . | . . . Piercing . | . . . Highest Corruption . | . . . Average Corruption . | . . . Corruption Purged . | . . . Corruption Blocked . | . . . Overload Shots . | . . . Overflow Damage 40 | . 12 28 Projectiles . | . . . Explosions 40 | . 12 28 Melee . | . . . Knockbacks . | . . . Impact . | . . . Kinetic . | . . . Secondary . | . . . Self-Inflicted Damage 84 | . . 84 Shots 3 | . . 3 Rammed . | . . . Targets Rammed 1 | . 1 . Kicked 1 | . 1 . Crushed . | . . . Highest Temperature 364 | 90 364 347 Average Temperature 89 | 41 102 67 Received Heat Transfer 512 | . 78 434 Effects 4 | . 4 . Energy Bleed 1 | . 1 . Interference 3 | . 3 . Siege Activations . | . . . Robots Corrupted . | . . . Combat Hostiles . | . . . Parts Fried . | . . . Impact Corruptions . | . . . Robots Melted . | . . . Combat Hostiles . | . . . Parts Melted 1 | . 1 . Heat Transferred 1567 | 161 641 765 Parts Sabotaged . | . . . Parts Stolen . | . . . Parts Stripped . | . . . Power Chain Reactions . | . . . Alert | -11 -10 -10 ------- Run | Yrd Mat Sub Peak Influence 312 | 10 312 . Initial 6 | . 6 . Average 110 | 3 116 . Maximum Alert Level 1 | . 1 . Low Security (%) 82 | 100 81 . Level 1 17 | . 18 . Level 2 . | . . . Level 3 . | . . . Level 4 . | . . . Level 5 . | . . . High Security . | . . . Max Security . | . . . Squads Dispatched 2 | . 2 . Investigation 2 | . 2 . Extermination . | . . . Reinforcement . | . . . Assault . | . . . Garrison . | . . . Intercept . | . . . Searches Triggered . | . . . Construction Impeded . | . . . Haulers Reinforced . | . . . Active Scanning Responses . | . . . Cargo Convoy Interrupts . | . . . Stealth | -11 -10 -10 --------- Run | Yrd Mat Sub Distress Signals 2 | . 2 . Communications Jammed . | . . . Distress Signals . | . . . Times Spotted 36 | . 15 21 Peak Tracking Total 5 | . 3 5 Tactical Retreats 1 | . . 1 Traps | -11 -10 -10 ------- Run | Yrd Mat Sub Traps Triggered 1 | . 1 . Indirectly . | . . . Trap Hack Attempts . | . . . Triggered . | . . . Disarmed 6 | . 6 . Reprogrammed . | . . . Reused . | . . . Traps Extracted . | . . . Installed . | . . . Triggered . | . . . Machines | -11 -10 -10 ---------- Run | Yrd Mat Sub Machines Disabled . | . . . Max in Single Turn . | . . . Machines Repaired . | . . . Machines Dismantled . | . . . Machines Sabotaged . | . . . Overloaded Fab Kills . | . . . Hacking | -11 -10 -10 --------- Run | Yrd Mat Sub Machines Accessed 5 | . 5 . Terminals 5 | . 5 . Fabricators . | . . . Repair Stations . | . . . Recycling Units . | . . . Scanalyzers . | . . . Garrison Access . | . . . Total Hacks 16 | . 16 . Successful 7 | . 7 . Failed 9 | . 9 . Catastrophic . | . . . Database Lockouts . | . . . Manual . | . . . Terminals 16 | . 16 . Fabricators . | . . . Repair Stations . | . . . Recycling Units . | . . . Scanalyzers . | . . . Garrison Access . | . . . Terminal Hacks 7 | . 7 . Prototype ID Bank 3 | . 3 . Level Access Points 1 | . 1 . Locate Traps 1 | . 1 . Disarm Traps 2 | . 2 . Fabricator Hacks . | . . . Repair Station Hacks . | . . . Recycling Unit Hacks . | . . . Scanalyzer . | . . . Garrison Access Hacks . | . . . Unauthorized Hacks . | . . . Terminals . | . . . Fabricators . | . . . Repair Stations . | . . . Recycling Units . | . . . Scanalyzers . | . . . Garrison Access . | . . . Data Cores Recovered . | . . . Used . | . . . Hacking Detections 3 | . 3 . Full Trace Events 1 | . 1 . Feedback Events . | . . . Feedback Blocked . | . . . Robot Schematics Acquired . | . . . Robots Built . | . . . Authchips . | . . . Time . | . . . Total Robot Build Rating . | . . . Part Schematics Acquired . | . . . Parts Built . | . . . Authchips . | . . . Time . | . . . Total Part Build Rating . | . . . Parts Repaired . | . . . Time . | . . . Parts Recycled . | . . . Recycled Matter . | . . . Retrieved Matter . | . . . Retrieved Components . | . . . Parts Scanalyzed . | . . . Part Schematics Acquired . | . . . Parts Damaged . | . . . Bothacking | -11 -10 -10 ------------ Run | Yrd Mat Sub Used RIF Installer . | . . . Robots Hacked . | . . . Non-combat . | . . . Combat . | . . . Robot Hacks Applied . | . . . Relay Couplers Released . | . . . Fabnet Peak Effective % . | . . . Robots Rewired . | . . . Allies Hacked . | . . . Hacks Repelled . | . . . Allies | -11 -10 -10 -------- Run | Yrd Mat Sub Total Allies . | . . . Largest Group . | . . . Highest-Rated Group . | . . . Highest-Rated Ally . | . . . Total Orders . | . . . Ally Attacks . | . . . Total Damage . | . . . Kills . | . . . Allies Corrupted . | . . . Allies Melted . | . . . Intel | -11 -10 -10 ------- Run | Yrd Mat Sub Robot Analysis Total . | . . . Derelict Logs Recovered 1 | . . 1 Drone Launches . | . . . Drone Recoveries . | . . . Exploration | -11 -10 -10 ------------- Run | Yrd Mat Sub Turns Passed 4652 | 91 1774 2787 Spaces Moved 2307 | 60 973 1274 Core 13 | 12 1 . Treads 2144 | . 870 1274 Legs 150 | 48 102 . Wheels . | . . . Hover . | . . . Flight . | . . . Fastest Speed 50 | 50 120 160 Average Speed 164 | 106 155 173 Slowest Speed 260 | 120 250 260 Overloaded Moves . | . . . Propulsion Burnouts . | . . . Robots Hopped . | . . . Cave-ins Triggered . | . . . Exploration Rate (%) 54 | 4 93 65 Regions Visited 2 Branch Regions 1 Pre-discovered Areas . | . . . Known Exits Taken 1 | . 1 . Unknown Exits Taken 1 | 1 . . Scrap Searched 16 | . . 16 Spaces Dug 12 | . . 12 Terrain Destroyed 274 | . 28 246 Melee . | . . . Projectile 1 | . . 1 AOE 273 | . 28 245 Terrain Rammed . | . . . Walls Destroyed . | . . . Machines Disabled . | . . . Actions | -11 -10 -10 --------- Run | Yrd Mat Sub Total 2949 | 79 1135 1735 Wait 399 | . 62 337 Move 2305 | 59 972 1274 Hop . | . . . Pick Up 33 | 9 18 6 Fast Attach 14 | . 4 10 Attach 11 | 7 3 1 Detach 3 | . 3 . Swap 22 | . 6 16 Drop 31 | . 16 15 Fire 130 | 4 50 76 Melee . | . . . Ram . | . . . Kick 1 | . 1 . Crush . | . . . Escape Stasis . | . . . Rewire . | . . . Trap . | . . . Miscellaneous . | . . . Route ------- -11/Scrapyard -10/Materials (discovered 6 exits: *Mat x3 / *Min x2 / *Sub) -10/Subcaves (discovered 1 exit: [*Mat]) History --------- Turn | Location | Event 8 | -11/Scrapyard | Discovered new exit (range 15) 92 | -11/Scrapyard | Entered Materials 200 | -10/Materials | Discovered new exit (range 13) 307 | -10/Materials | Discovered new exit (range 15) 316 | -10/Materials | Build established: Mutant 507 | -10/Materials | Discovered new exit (range 12) 798 | -10/Materials | Discovered new exit (range 13) 850 | -10/Materials | Discovered new exit (range 14) 921 | -10/Materials | Discovered new exit (range 9) 955 | -10/Materials | Identified exit to Materials 1253 | -10/Materials | Identified exit to Mines 1309 | -10/Materials | Identified exit to Subcaves 1326 | -10/Materials | Build established: Scavenger-Mutant 1866 | -10/Materials | Entered Subcaves 1908 | -10/Subcaves | Discovered new exit (range 4) 2018 | -10/Subcaves | Shifting Twisted Machinery released Sub. Shrapnel Launcher 2019 | -10/Subcaves | Shifting Twisted Machinery released Shrapnel Trap 2167 | -10/Subcaves | Build established: Mutant 2462 | -10/Subcaves | A swath of the cavern ceiling suddenly collapsed 2598 | -10/Subcaves | Learned 2 Materials zone layouts 2629 | -10/Subcaves | Disturbed a concealed Subdweller 2645 | -10/Subcaves | Disturbed a concealed Subdweller 3697 | -10/Subcaves | Core integrity fell below 50% 4638 | -10/Subcaves | Core integrity fell below 20% 4653 | -10/Subcaves | Destroyed by 40-D0X(R) with Subdweller Machine Gun Last Messages --------------- S-10 Pest destroyed. Acquired 15 matter. Flight Unit fries itself beyond repair. Acquired 8 matter. Lgt. Assault Rifle fries itself beyond repair. Acquired 26 matter. Lgt. Assault Rifle fries itself beyond repair. Dropped Spk. Treads. CM-DG4(R) emerges from concealment. DR-K6G(R) destroyed. CM-DG4(R) destroyed. Acquired Spk. Treads. Acquired 30 matter. Acquired Sub. Power Source. Acquired 41 matter. Dropped Spk. Treads. E7-MXO(R) destroyed. Acquired Spk. Treads. Acquired 30 matter. Dropped Spk. Treads. Map ----- +----------------------------------------------------+ | ?????????????????????????????????????????????????? | | ?????????????????????????????????????????????????? | | ?????????????????????????????????????????????????? | | ?????????????????????????????????????????????????? | | ?????????????????????????????????????????????????? | | ?????????????????????????????????????????????????? | | ?????????????????????????##??????????????????????? | | ????????????????????????? ??????????????????????? | | ?????????????????#??????? ??????????????????????? | | ?????????????????# ?????? "?????????????????????? | | ????????????????## ""???# "?????????????????????? | | ???????????????## """?? "?????????????????????? | | ???????????????# " ?## "?????????????????????? | | ???????????????# ## "?????????????????????? | | ??????????????## "?????????? ????????? | | ??????????????? "?######?? ????????? | | ?????????????????" ## #;;;## ???????? | | ???????????????????? #";; ;; ???????? | | ??????????????????????# "; ??????? | | ??????????????????????# #????????? | | ??????????????????????# ;; #?????????????? | | ??????????????????????## ;;"###?????????????? | | ???????????????? ?????### ####???????????????? | | ??###????##??? ??????# ##?????????????????? | | #####????"#? ?####RR #?????????????????? | | # ##??""# ???## @ #?????????????????? | | # ## ###""# #???????# ######?????????????? | | ###""""#" #???????# #### ??????????????? | | #?###### #???????# ##??# #????????###???? | | ####### #? #??????# ##??## #???????##"####? | | |[##?##??? ???# ##?## #??????## ""#? | | ###%#????????# ##??# ### ########" "#? | | ##?###??????????? #??## # ## "" "#? | | ??????????????????????## "##? | | ???????????????????????# " #? | | ???????????????????????# ## # " "### | | ???????????????????# "" "# | | ??????????????????# #"" # | | ?????????????????# ### ### | | ????????????????# #?# ##?#### | | ????????????????# ## #?# ##?????# | | ???????????????# #?## ## ##??????## | | ??????????????? #???### #### ####????????### | | ??????????????? ???????# ##??####?????????????# | | ??????????????? ????????# #??????######???????## | | ????????###???#?????????# ###?##"" ???????## | | ??????## #???# ????????#"" # #??""" ???????# | | ####?## ##### ???????#"""" #??""" ????????# | | ## ### #?# ???????## "#""#??# #???????## | | && #??? ??????? ""#??# #???????# | +----------------------------------------------------+ Best States ------------- Heat Dissipation 25 Energy Generation 15 Energy Capacity 200 Matter Stores 300 Matter Capacity 300 Sight Range 16 Terrain Scan Range 16 Terrain Scan Density 10 Armor Coverage 150 Evasion (%) 55 Recoil Reduction 2 Item Schematics ----------------- None Robot Schematics ------------------ None Fabricated ------------ Nothing Alien Tech Used ----------------- None Achievements -------------- None Challenges ------------ None Game ------ Seed TargetShrapnelDoublenader Manual? 0 Play Time 00:23:58 Cumulative 13.9 hours Start 2024.04.01 @ 13:49:08 End 2024.04.01 @ 14:19:41 Sessions 1 Manual Loads 0 Difficulty Rogue Special Mode None Game No. 31 Rogue 30 Adventurer 1 Explorer 0 Win Type - Total 0 Types 0/0/0/0/0/0/0/0/0 Lore% 8 Gallery% 17 Achievement% 17 Wizard Run 0 Options --------- Layout 1 ASCII 0 Keyboard 0 Movement Mouse Keybinds 0 Fullscreen 2 Font 24/Terminus Map View 50x35 Zoom Use 0% Tactical HUD 0 Map Filters NONE Filters NONE Steam 1 RUN: ae2b9a4f-8d2f-49ad-9e5e-60f5d3dde2fd